[Event "*** Titled Tuesday Blitz"]
[Site "Chess.com"]
[Date "2020.12.29"]
[Round "4"]
[White "malakismayil"]
[Black "Snegokhod"]
[Result "0-1"]
[WhiteElo "2305"]
[BlackElo "2463"]
[TimeControl "180+1"]
[EndTime "10:40:09 PST"]
[Termination "Snegokhod won by resignation"]

1. e4 {[%clk 0:03:00.9]} 1... e5 {[%clk 0:02:54.8]} 2. Nf3 {[%clk 0:03:01.3]}
2... f6 {[%clk 0:02:53]} 3. Bc4 {[%clk 0:03:01.5]} 3... c6 {[%clk 0:02:52]} 4.
d4 {[%clk 0:03:00.2]} 4... d5 {[%clk 0:02:51.3]} 5. exd5 {[%clk 0:02:54.6]} 5...
e4 {[%clk 0:02:50.9]} 6. Nfd2 {[%clk 0:02:52.6]} 6... cxd5 {[%clk 0:02:50.9]} 7.
Qh5+ {[%clk 0:02:48.4]} 7... g6 {[%clk 0:02:48.5]} 8. Qxd5 {[%clk 0:02:42.1]}
8... Qxd5 {[%clk 0:02:48]} 9. Bxd5 {[%clk 0:02:43]} 9... f5 {[%clk 0:02:48.3]}
10. f3 {[%clk 0:02:37]} 10... e3 {[%clk 0:02:44.7]} 11. Nc4 {[%clk 0:02:35.6]}
11... Nf6 {[%clk 0:02:44]} 12. Nxe3 {[%clk 0:02:18]} 12... f4 {[%clk 0:02:44]}
13. Bb3 {[%clk 0:02:06.3]} 13... fxe3 {[%clk 0:02:43.4]} 14. Bxe3 {[%clk
0:02:07.2]} 14... Nc6 {[%clk 0:02:42.9]} 15. c4 {[%clk 0:02:01.9]} 15... Bf5
{[%clk 0:02:40.7]} 16. Nc3 {[%clk 0:01:58.4]} 16... O-O-O {[%clk 0:02:38.2]} 17.
d5 {[%clk 0:01:51.7]} 17... Nb4 {[%clk 0:02:34.1]} 18. Bxa7 {[%clk 0:01:49]}
18... Nd3+ {[%clk 0:02:32.7]} 19. Kd2 {[%clk 0:01:44.6]} 19... Nxb2 {[%clk
0:02:18.8]} 20. Bd4 {[%clk 0:01:41.3]} 20... Bh6+ {[%clk 0:02:12.8]} 21. Ke2
{[%clk 0:01:33.5]} 21... Rhe8+ {[%clk 0:02:11.5]} 22. Kf2 {[%clk 0:01:32.5]}
22... Nd3+ {[%clk 0:02:10.7]} 23. Kf1 {[%clk 0:01:27.6]} 23... Nd7 {[%clk
0:02:05]} 24. g4 {[%clk 0:01:20.8]} 24... Be3 {[%clk 0:01:58.8]} 25. Bxe3 {[%clk
0:01:10.3]} 25... Rxe3 {[%clk 0:01:58.2]} 26. gxf5 {[%clk 0:01:01.1]} 26... Rf8
{[%clk 0:01:39.8]} 27. Ne4 {[%clk 0:00:44.3]} 27... Kc7 {[%clk 0:01:18.6]} 28.
Kg2 {[%clk 0:00:26.1]} 28... Rxf5 {[%clk 0:01:17.2]} 29. Rhf1 {[%clk 0:00:22.7]}
29... N7e5 {[%clk 0:01:09.4]} 30. Ng3 {[%clk 0:00:17.8]} 30... Rfxf3 {[%clk
0:01:04.9]} 31. Rxf3 {[%clk 0:00:18.1]} 31... Nxf3 {[%clk 0:01:04.4]} 32. Rf1
{[%clk 0:00:18.6]} 32... Nfe1+ {[%clk 0:00:39.2]} 33. Kh3 {[%clk 0:00:18]} 33...
Re7 {[%clk 0:00:36.8]} 34. Kg4 {[%clk 0:00:08.4]} 34... Ne5+ {[%clk 0:00:33.6]}
35. Kh3 {[%clk 0:00:08.3]} 35... N1f3 {[%clk 0:00:32.9]} 36. Bd1 {[%clk
0:00:06.8]} 36... Ng5+ {[%clk 0:00:29.8]} 37. Kh4 {[%clk 0:00:07]} 37... Ngf7
{[%clk 0:00:29.4]} 38. c5 {[%clk 0:00:06.9]} 38... Rd7 {[%clk 0:00:27.9]} 39.
d6+ {[%clk 0:00:07.8]} 39... Kd8 {[%clk 0:00:27.3]} 40. Ba4 {[%clk 0:00:08.3]}
40... Nc6 {[%clk 0:00:27]} 41. Bxc6 {[%clk 0:00:07.6]} 41... bxc6 {[%clk
0:00:27.5]} 42. Ne4 {[%clk 0:00:08.4]} 42... Ra7 {[%clk 0:00:24.8]} 43. Rf3
{[%clk 0:00:06.5]} 43... Nh6 {[%clk 0:00:21.9]} 44. Kg5 {[%clk 0:00:06.1]} 44...
Nf5 {[%clk 0:00:21.3]} 45. Ng3 {[%clk 0:00:06.7]} 45... h6+ {[%clk 0:00:12.5]}
46. Kxg6 {[%clk 0:00:06.5]} 46... Nh4+ {[%clk 0:00:12.9]} 47. Kxh6 {[%clk
0:00:06.1]} 47... Nxf3 {[%clk 0:00:13.8]} 48. Nf5 {[%clk 0:00:03.3]} 48... Nxh2
{[%clk 0:00:13]} 49. Kg6 {[%clk 0:00:02.7]} 49... Rxa2 {[%clk 0:00:12.3]} 50.
Kf6 {[%clk 0:00:03.1]} 50... Re2 {[%clk 0:00:11.3]} 51. Ng7 {[%clk 0:00:03.5]}
51... Kd7 {[%clk 0:00:10.7]} 52. Nf5 {[%clk 0:00:02.4]} 52... Ng4+ {[%clk
0:00:10.2]} 53. Kg5 {[%clk 0:00:02.3]} 53... Ne5 {[%clk 0:00:10.1]} 54. Nd4
{[%clk 0:00:02.6]} 54... Rd2 {[%clk 0:00:08.1]} 55. Nb3 {[%clk 0:00:02.4]} 55...
Rd5 {[%clk 0:00:08]} 56. Kf6 {[%clk 0:00:01.4]} 56... Nd3 {[%clk 0:00:08.1]} 57.
Na5 {[%clk 0:00:01.5]} 57... Nxc5 {[%clk 0:00:07.9]} 58. Nb7 {[%clk 0:00:02.4]}
58... Ne4+ {[%clk 0:00:07.5]} 59. Kf7 {[%clk 0:00:01.9]} 59... Nxd6+ {[%clk
0:00:07.8]} 60. Kg6 {[%clk 0:00:02.8]} 60... Nxb7 {[%clk 0:00:07.9]} 61. Kg7
{[%clk 0:00:03.7]} 61... Rd6 {[%clk 0:00:08.3]} 0-1

[Event "*** Titled Tuesday Blitz"]
[Site "Chess.com"]
[Date "2020.12.29"]
[Round "4"]
[White "CSB7"]
[Black "1random"]
[Result "1-0"]
[WhiteElo "2635"]
[BlackElo "2427"]
[TimeControl "180+1"]
[EndTime "10:40:11 PST"]
[Termination "CSB7 won by checkmate"]

1. e4 {[%clk 0:03:00.9]} 1... d5 {[%clk 0:03:00]} 2. exd5 {[%clk 0:03:00.4]}
2... Nf6 {[%clk 0:03:00.7]} 3. Nf3 {[%clk 0:02:58.1]} 3... Bg4 {[%clk 0:03:01]}
4. Bb5+ {[%clk 0:02:50]} 4... Nbd7 {[%clk 0:03:01.2]} 5. Nc3 {[%clk 0:02:44]}
5... a6 {[%clk 0:03:00.9]} 6. Be2 {[%clk 0:02:40.5]} 6... Nb6 {[%clk 0:03:01]}
7. h3 {[%clk 0:02:40]} 7... Bxf3 {[%clk 0:02:57.3]} 8. Bxf3 {[%clk 0:02:39.7]}
8... Nbxd5 {[%clk 0:02:58]} 9. Nxd5 {[%clk 0:02:34]} 9... Nxd5 {[%clk
0:02:58.9]} 10. c4 {[%clk 0:02:34.4]} 10... Nf4 {[%clk 0:01:34.6]} 11. Bxb7
{[%clk 0:02:25.4]} 11... Nd3+ {[%clk 0:01:26.4]} 12. Kf1 {[%clk 0:02:00.1]}
12... Qd4 {[%clk 0:01:22.6]} 13. Qf3 {[%clk 0:01:52.6]} 13... Rd8 {[%clk
0:00:55.8]} 14. Bc6+ {[%clk 0:01:15.3]} 14... Rd7 {[%clk 0:00:55.3]} 15. Bxd7+
{[%clk 0:01:12.9]} 15... Kxd7 {[%clk 0:00:55.8]} 16. Qd5+ {[%clk 0:01:12.2]}
16... Qxd5 {[%clk 0:00:56.2]} 17. cxd5 {[%clk 0:01:13.1]} 17... g6 {[%clk
0:00:47.1]} 18. Ke2 {[%clk 0:01:10.6]} 18... Nf4+ {[%clk 0:00:43.6]} 19. Kf3
{[%clk 0:01:10]} 19... Nxd5 {[%clk 0:00:44.3]} 20. d4 {[%clk 0:01:08.7]} 20...
Bg7 {[%clk 0:00:42.7]} 21. Be3 {[%clk 0:01:09]} 21... Rb8 {[%clk 0:00:40.3]} 22.
b3 {[%clk 0:00:59.8]} 22... a5 {[%clk 0:00:14.8]} 23. Rac1 {[%clk 0:00:55.2]}
23... a4 {[%clk 0:00:10.8]} 24. bxa4 {[%clk 0:00:51.5]} 24... Rb4 {[%clk
0:00:10.8]} 25. a5 {[%clk 0:00:39.5]} 25... Ra4 {[%clk 0:00:10.3]} 26. Rc5
{[%clk 0:00:39.5]} 26... e6 {[%clk 0:00:09.2]} 27. Rb1 {[%clk 0:00:17.8]} 27...
Bf8 {[%clk 0:00:08.4]} 28. Rcb5 {[%clk 0:00:14.3]} 28... Rxa2 {[%clk 0:00:08.6]}
29. R1b2 {[%clk 0:00:14.4]} 29... Ra3 {[%clk 0:00:07.6]} 30. Rc2 {[%clk
0:00:13.1]} 30... h5 {[%clk 0:00:05.3]} 31. Rb8 {[%clk 0:00:12.5]} 31... Be7
{[%clk 0:00:04.4]} 32. Ra8 {[%clk 0:00:10.7]} 32... Nb4 {[%clk 0:00:04.1]} 33.
Rb2 {[%clk 0:00:07.3]} 33... Nd5 {[%clk 0:00:04.1]} 34. Rbb8 {[%clk 0:00:07]}
34... Bd6 {[%clk 0:00:03.8]} 35. a6 {[%clk 0:00:06.8]} 35... Nb6 {[%clk
0:00:02.9]} 36. Ra7 {[%clk 0:00:05.6]} 36... Kc6 {[%clk 0:00:03.5]} 37. Rg8
{[%clk 0:00:04.4]} 37... Ra4 {[%clk 0:00:03.2]} 38. g3 {[%clk 0:00:03.9]} 38...
Ra3 {[%clk 0:00:03.7]} 39. h4 {[%clk 0:00:04.4]} 39... Ra4 {[%clk 0:00:04]} 40.
Kg2 {[%clk 0:00:04.9]} 40... Ra3 {[%clk 0:00:04.4]} 41. Bg5 {[%clk 0:00:03.9]}
41... Ra2 {[%clk 0:00:03.6]} 42. Bh6 {[%clk 0:00:03]} 42... Nd5 {[%clk
0:00:04.1]} 43. Bf8 {[%clk 0:00:02.9]} 43... Bxf8 {[%clk 0:00:02]} 44. Rxf8
{[%clk 0:00:03.8]} 44... Nb4 {[%clk 0:00:02.5]} 45. Rxf7 {[%clk 0:00:03.1]}
45... Kb6 {[%clk 0:00:02.3]} 46. Raxc7 {[%clk 0:00:03.4]} 46... Nd5 {[%clk
0:00:01.1]} 47. Rb7+ {[%clk 0:00:03.7]} 47... Kc6 {[%clk 0:00:01.6]} 48. Ra7
{[%clk 0:00:04.1]} 48... Ne3+ {[%clk 0:00:01.3]} 49. Kf3 {[%clk 0:00:04.5]}
49... Nf5 {[%clk 0:00:02.2]} 50. Ra8 {[%clk 0:00:03.1]} 50... Nxd4+ {[%clk
0:00:02.4]} 51. Kg2 {[%clk 0:00:03.6]} 51... Nb5 {[%clk 0:00:01.9]} 52. a7
{[%clk 0:00:03.6]} 52... Kb6 {[%clk 0:00:01.4]} 53. Rb8+ {[%clk 0:00:03.8]}
53... Kc6 {[%clk 0:00:02.2]} 54. a8=Q+ {[%clk 0:00:04.3]} 54... Rxa8 {[%clk
0:00:02.6]} 55. Rxa8 {[%clk 0:00:05.2]} 55... Nd6 {[%clk 0:00:03.4]} 56. Raf8
{[%clk 0:00:05.8]} 56... Kd5 {[%clk 0:00:04.3]} 57. Rf6 {[%clk 0:00:06]} 57...
g5 {[%clk 0:00:05.2]} 58. hxg5 {[%clk 0:00:06.1]} 58... h4 {[%clk 0:00:06.1]}
59. g6 {[%clk 0:00:07]} 59... h3+ {[%clk 0:00:07]} 60. Kxh3 {[%clk 0:00:07.2]}
60... Nf5 {[%clk 0:00:07.9]} 61. Rxf5+ {[%clk 0:00:07.4]} 61... exf5 {[%clk
0:00:08.8]} 62. g7 {[%clk 0:00:08.3]} 62... Ke4 {[%clk 0:00:09.7]} 63. g8=Q
{[%clk 0:00:09.2]} 63... f4 {[%clk 0:00:10.4]} 64. Qe6+ {[%clk 0:00:08.6]} 64...
Kf3 {[%clk 0:00:11.3]} 65. Rxf4# {[%clk 0:00:09]} 1-0

[Event "*** Titled Tuesday Blitz"]
[Site "Chess.com"]
[Date "2020.12.29"]
[Round "4"]
[White "Ajedrez_con_German"]
[Black "ViktoriyaTarasova"]
[Result "1/2-1/2"]
[WhiteElo "2521"]
[BlackElo "2347"]
[TimeControl "180+1"]
[EndTime "10:40:12 PST"]
[Termination "Game drawn by repetition"]

1. Nf3 {[%clk 0:03:00.9]} 1... Nf6 {[%clk 0:02:59]} 2. e3 {[%clk 0:02:59.9]}
2... d5 {[%clk 0:02:58.1]} 3. b3 {[%clk 0:02:59.8]} 3... e6 {[%clk 0:02:58.1]}
4. Bb2 {[%clk 0:03:00.7]} 4... c5 {[%clk 0:02:58.2]} 5. Bb5+ {[%clk 0:03:00.5]}
5... Bd7 {[%clk 0:02:57.9]} 6. Bxd7+ {[%clk 0:03:00.5]} 6... Nbxd7 {[%clk
0:02:57.8]} 7. O-O {[%clk 0:03:01.4]} 7... Bd6 {[%clk 0:02:57.9]} 8. d3 {[%clk
0:03:01.8]} 8... O-O {[%clk 0:02:58]} 9. Nbd2 {[%clk 0:03:02.1]} 9... Qc7 {[%clk
0:02:57.3]} 10. e4 {[%clk 0:03:02.2]} 10... d4 {[%clk 0:02:45.4]} 11. Nc4 {[%clk
0:03:02.2]} 11... Be7 {[%clk 0:02:45.5]} 12. a4 {[%clk 0:03:02]} 12... e5 {[%clk
0:02:45.7]} 13. Qe2 {[%clk 0:02:59.7]} 13... Ne8 {[%clk 0:02:44.8]} 14. Bc1
{[%clk 0:02:57.7]} 14... f6 {[%clk 0:02:44.3]} 15. Nh4 {[%clk 0:02:56.5]} 15...
g6 {[%clk 0:02:43.6]} 16. f4 {[%clk 0:02:54.7]} 16... Ng7 {[%clk 0:02:27.4]} 17.
Qg4 {[%clk 0:02:49.7]} 17... f5 {[%clk 0:02:02]} 18. exf5 {[%clk 0:02:42.9]}
18... gxf5 {[%clk 0:02:00.4]} 19. Qh3 {[%clk 0:02:23.6]} 19... e4 {[%clk
0:01:58.9]} 20. Bb2 {[%clk 0:01:51.1]} 20... e3 {[%clk 0:01:42.9]} 21. c3 {[%clk
0:01:44.5]} 21... Bf6 {[%clk 0:01:24.5]} 22. cxd4 {[%clk 0:01:34.4]} 22... Bxd4
{[%clk 0:01:11.2]} 23. Kh1 {[%clk 0:01:26.2]} 23... Rae8 {[%clk 0:01:08.4]} 24.
Rae1 {[%clk 0:01:24.2]} 24... e2 {[%clk 0:01:02.3]} 25. Rf3 {[%clk 0:01:21.5]}
25... Bxb2 {[%clk 0:00:48.6]} 26. Nxb2 {[%clk 0:01:21.1]} 26... Qa5 {[%clk
0:00:37.8]} 27. Qg3 {[%clk 0:01:02.1]} 27... Kh8 {[%clk 0:00:33.5]} 28. Qf2
{[%clk 0:00:47.7]} 28... Qc3 {[%clk 0:00:25.9]} 29. Nc4 {[%clk 0:00:36.5]} 29...
Qxb3 {[%clk 0:00:25.9]} 30. Re3 {[%clk 0:00:22.6]} 30... Rxe3 {[%clk 0:00:24.5]}
31. Nxe3 {[%clk 0:00:22.5]} 31... Qxd3 {[%clk 0:00:22.4]} 32. Rxe2 {[%clk
0:00:20.9]} 32... Nf6 {[%clk 0:00:19.7]} 33. Nhxf5 {[%clk 0:00:19]} 33... Nxf5
{[%clk 0:00:18.8]} 34. Nxf5 {[%clk 0:00:18.8]} 34... Qxf5 {[%clk 0:00:19]} 35.
h3 {[%clk 0:00:18.4]} 35... c4 {[%clk 0:00:18.2]} 36. Re5 {[%clk 0:00:18.2]}
36... Qb1+ {[%clk 0:00:17]} 37. Re1 {[%clk 0:00:17.9]} 37... Qg6 {[%clk
0:00:16.4]} 38. Qd4 {[%clk 0:00:18]} 38... Qf7 {[%clk 0:00:14.4]} 39. f5 {[%clk
0:00:17.1]} 39... Rc8 {[%clk 0:00:13.9]} 40. Re6 {[%clk 0:00:16.2]} 40... Kg7
{[%clk 0:00:12.2]} 41. Qe5 {[%clk 0:00:16.5]} 41... Rc7 {[%clk 0:00:10.4]} 42.
Rxf6 {[%clk 0:00:16.8]} 42... Qxf6 {[%clk 0:00:09.8]} 43. Qxc7+ {[%clk
0:00:17.2]} 43... Kh6 {[%clk 0:00:09.9]} 44. Qxc4 {[%clk 0:00:17.2]} 44... Qxf5
{[%clk 0:00:10.3]} 45. Qd4 {[%clk 0:00:12]} 45... Qb1+ {[%clk 0:00:09.7]} 46.
Kh2 {[%clk 0:00:11.2]} 46... a6 {[%clk 0:00:10.1]} 47. Qd6+ {[%clk 0:00:09.8]}
47... Kg7 {[%clk 0:00:09.8]} 48. Qe7+ {[%clk 0:00:09.1]} 48... Kg8 {[%clk
0:00:09.6]} 49. Qe8+ {[%clk 0:00:09]} 49... Kg7 {[%clk 0:00:10]} 50. Qd7+ {[%clk
0:00:08.9]} 50... Kg8 {[%clk 0:00:10]} 51. Qd8+ {[%clk 0:00:09.1]} 51... Kg7
{[%clk 0:00:10.4]} 52. Qc7+ {[%clk 0:00:09.3]} 52... Kg8 {[%clk 0:00:10.2]} 53.
a5 {[%clk 0:00:09.4]} 53... Qb5 {[%clk 0:00:09.2]} 54. Qb8+ {[%clk 0:00:08.3]}
54... Kg7 {[%clk 0:00:09.4]} 55. Qc7+ {[%clk 0:00:08.6]} 55... Kg8 {[%clk
0:00:09.6]} 56. h4 {[%clk 0:00:07.4]} 56... Qb4 {[%clk 0:00:09.1]} 57. g3 {[%clk
0:00:05.2]} 57... Qb2+ {[%clk 0:00:08.4]} 58. Kh3 {[%clk 0:00:04.5]} 58... Qb1
{[%clk 0:00:09]} 59. Qd8+ {[%clk 0:00:03.7]} 59... Kf7 {[%clk 0:00:09]} 60. Qd7+
{[%clk 0:00:03.9]} 60... Kf6 {[%clk 0:00:08.6]} 61. Qd6+ {[%clk 0:00:03]} 61...
Kf7 {[%clk 0:00:08.9]} 62. Qc7+ {[%clk 0:00:03.1]} 62... Kf6 {[%clk 0:00:09.1]}
63. Qd6+ {[%clk 0:00:02.6]} 63... Kf7 {[%clk 0:00:09.1]} 64. Qc7+ {[%clk
0:00:03.2]} 64... Kg8 {[%clk 0:00:09.2]} 65. Qd8+ {[%clk 0:00:03.4]} 65... Kf7
{[%clk 0:00:09.4]} 66. Qd7+ {[%clk 0:00:03.8]} 66... Kf8 {[%clk 0:00:09.7]} 67.
Qd8+ {[%clk 0:00:04.3]} 67... Kf7 {[%clk 0:00:10.1]} 1/2-1/2

[Event "*** Titled Tuesday Blitz"]
[Site "Chess.com"]
[Date "2020.12.29"]
[Round "4"]
[White "TigrVShlyape"]
[Black "Rud_Makarian"]
[Result "1-0"]
[WhiteElo "2870"]
[BlackElo "2684"]
[TimeControl "180+1"]
[EndTime "10:40:17 PST"]
[Termination "TigrVShlyape won on time"]

1. e4 {[%clk 0:03:00.9]} 1... e5 {[%clk 0:02:59.9]} 2. Nf3 {[%clk 0:03:00.4]}
2... Nc6 {[%clk 0:03:00.5]} 3. Bb5 {[%clk 0:02:59.8]} 3... Nf6 {[%clk
0:03:00.3]} 4. O-O {[%clk 0:02:58.5]} 4... Nxe4 {[%clk 0:03:00.2]} 5. Re1 {[%clk
0:02:56]} 5... Nd6 {[%clk 0:03:00.4]} 6. Nxe5 {[%clk 0:02:56.1]} 6... Be7 {[%clk
0:03:01]} 7. Bf1 {[%clk 0:02:55.2]} 7... Nxe5 {[%clk 0:03:01.2]} 8. Rxe5 {[%clk
0:02:55.1]} 8... O-O {[%clk 0:03:02.1]} 9. d4 {[%clk 0:02:55.1]} 9... Bf6 {[%clk
0:03:02.3]} 10. Re1 {[%clk 0:02:54.7]} 10... Re8 {[%clk 0:03:02.4]} 11. c3
{[%clk 0:02:52.5]} 11... Rxe1 {[%clk 0:03:01.7]} 12. Qxe1 {[%clk 0:02:52.7]}
12... Ne8 {[%clk 0:03:02.4]} 13. d5 {[%clk 0:02:52]} 13... d6 {[%clk 0:02:59.4]}
14. Nd2 {[%clk 0:02:48.5]} 14... c6 {[%clk 0:02:59.3]} 15. Ne4 {[%clk 0:02:41]}
15... cxd5 {[%clk 0:02:55.6]} 16. Nxf6+ {[%clk 0:02:40.3]} 16... Nxf6 {[%clk
0:02:56.5]} 17. Be3 {[%clk 0:02:38.6]} 17... Bf5 {[%clk 0:02:50]} 18. Bd4 {[%clk
0:02:37.3]} 18... Ne4 {[%clk 0:02:49.3]} 19. f3 {[%clk 0:02:34.7]} 19... Nc5
{[%clk 0:02:47.9]} 20. Qd2 {[%clk 0:02:29]} 20... Ne6 {[%clk 0:02:46.5]} 21. Bf2
{[%clk 0:02:28.4]} 21... Qa5 {[%clk 0:02:33.9]} 22. a3 {[%clk 0:02:21.7]} 22...
d4 {[%clk 0:02:32.5]} 23. Bxd4 {[%clk 0:02:21]} 23... Nxd4 {[%clk 0:02:32.7]}
24. Qxd4 {[%clk 0:02:20.8]} 24... Qc5 {[%clk 0:02:27.9]} 25. Rd1 {[%clk
0:02:19.6]} 25... Qxd4+ {[%clk 0:02:16.8]} 26. Rxd4 {[%clk 0:02:17.8]} 26... Rd8
{[%clk 0:02:17.3]} 27. Ra4 {[%clk 0:02:16.1]} 27... a6 {[%clk 0:02:10.7]} 28.
Rb4 {[%clk 0:02:14.5]} 28... Bc8 {[%clk 0:02:11]} 29. h4 {[%clk 0:02:10.7]}
29... Kf8 {[%clk 0:02:08.8]} 30. Kf2 {[%clk 0:02:10.5]} 30... Ke7 {[%clk
0:02:09.1]} 31. Bd3 {[%clk 0:02:01.4]} 31... h6 {[%clk 0:02:08.8]} 32. Ke3
{[%clk 0:01:55.3]} 32... Kd7 {[%clk 0:01:52.5]} 33. Be4 {[%clk 0:01:53.8]} 33...
Kc7 {[%clk 0:01:49.8]} 34. Rc4+ {[%clk 0:01:53.7]} 34... Kb8 {[%clk 0:01:43.4]}
35. Rd4 {[%clk 0:01:44.6]} 35... Be6 {[%clk 0:01:43]} 36. f4 {[%clk 0:01:41.6]}
36... g6 {[%clk 0:01:34.9]} 37. Rb4 {[%clk 0:01:38.4]} 37... d5 {[%clk
0:01:33.2]} 38. Bf3 {[%clk 0:01:36.9]} 38... h5 {[%clk 0:01:33.6]} 39. Rd4
{[%clk 0:01:24]} 39... Kc7 {[%clk 0:01:33.2]} 40. c4 {[%clk 0:01:19.6]} 40...
Re8 {[%clk 0:01:01]} 41. cxd5 {[%clk 0:00:46.4]} 41... Bxd5+ {[%clk 0:01:01.9]}
42. Kf2 {[%clk 0:00:46.9]} 42... Bxf3 {[%clk 0:01:01.4]} 43. Kxf3 {[%clk
0:00:47.4]} 43... Re1 {[%clk 0:00:58.3]} 44. Rc4+ {[%clk 0:00:45.5]} 44... Kd6
{[%clk 0:00:57.1]} 45. Rd4+ {[%clk 0:00:45.4]} 45... Ke6 {[%clk 0:00:29.6]} 46.
Rb4 {[%clk 0:00:45.1]} 46... b5 {[%clk 0:00:20.5]} 47. a4 {[%clk 0:00:45]} 47...
bxa4 {[%clk 0:00:18.1]} 48. Rxa4 {[%clk 0:00:44.9]} 48... Rf1+ {[%clk
0:00:18.6]} 49. Kg3 {[%clk 0:00:41.4]} 49... Rb1 {[%clk 0:00:15.3]} 50. Rxa6+
{[%clk 0:00:41.1]} 50... Kf5 {[%clk 0:00:15.9]} 51. Rb6 {[%clk 0:00:40.4]} 51...
Rd1 {[%clk 0:00:15.4]} 52. Rb5+ {[%clk 0:00:39.9]} 52... Kf6 {[%clk 0:00:14.9]}
53. Rb3 {[%clk 0:00:35.2]} 53... Rd2 {[%clk 0:00:14.4]} 54. Kf3 {[%clk
0:00:34.7]} 54... Rc2 {[%clk 0:00:14.8]} 55. g3 {[%clk 0:00:34.5]} 55... Kf5
{[%clk 0:00:14.2]} 56. Rb5+ {[%clk 0:00:34.2]} 56... Kf6 {[%clk 0:00:14.8]} 57.
Rb7 {[%clk 0:00:32]} 57... Ke6 {[%clk 0:00:11.9]} 58. Rb3 {[%clk 0:00:27.6]}
58... Kf6 {[%clk 0:00:10.6]} 59. Ke4 {[%clk 0:00:26.8]} 59... Ke6 {[%clk
0:00:08.9]} 60. Kd3 {[%clk 0:00:25.4]} 60... Rg2 {[%clk 0:00:09.2]} 61. Ke4
{[%clk 0:00:21]} 61... Rd2 {[%clk 0:00:06.3]} 62. Rb6+ {[%clk 0:00:20.1]} 62...
Ke7 {[%clk 0:00:06.9]} 63. f5 {[%clk 0:00:17.2]} 63... gxf5+ {[%clk 0:00:03.4]}
64. Kxf5 {[%clk 0:00:17.1]} 64... Rd5+ {[%clk 0:00:03.6]} 65. Ke4 {[%clk
0:00:16.9]} 65... Rd2 {[%clk 0:00:04.1]} 66. Kf4 {[%clk 0:00:16.9]} 66... Rd3
{[%clk 0:00:03.3]} 67. Rb5 {[%clk 0:00:16.4]} 67... Rd2 {[%clk 0:00:01.8]} 68.
b4 {[%clk 0:00:14.6]} 1-0

[Event "*** Titled Tuesday Blitz"]
[Site "Chess.com"]
[Date "2020.12.29"]
[Round "4"]
[White "vanyakuba"]
[Black "anpospan"]
[Result "1-0"]
[WhiteElo "2477"]
[BlackElo "2322"]
[TimeControl "180+1"]
[EndTime "10:40:18 PST"]
[Termination "vanyakuba won on time"]

1. e4 {[%clk 0:03:00.9]} 1... Nc6 {[%clk 0:02:59]} 2. Nc3 {[%clk 0:03:00.4]}
2... d6 {[%clk 0:02:49.5]} 3. d4 {[%clk 0:03:00]} 3... Nf6 {[%clk 0:02:48.9]} 4.
f4 {[%clk 0:02:59.4]} 4... Bg4 {[%clk 0:02:47.9]} 5. Nf3 {[%clk 0:02:49.5]} 5...
Bxf3 {[%clk 0:02:46.5]} 6. gxf3 {[%clk 0:02:49]} 6... e6 {[%clk 0:02:41]} 7. Be3
{[%clk 0:02:47.9]} 7... Nh5 {[%clk 0:02:39.5]} 8. Qd2 {[%clk 0:02:45.9]} 8...
Qh4+ {[%clk 0:02:37.6]} 9. Qf2 {[%clk 0:02:46.1]} 9... Qxf2+ {[%clk 0:02:35.2]}
10. Kxf2 {[%clk 0:02:47]} 10... g6 {[%clk 0:02:29.7]} 11. d5 {[%clk 0:02:38.9]}
11... Nb4 {[%clk 0:02:20]} 12. Bb5+ {[%clk 0:02:37.9]} 12... c6 {[%clk
0:02:15.7]} 13. Ba4 {[%clk 0:02:11.3]} 13... b5 {[%clk 0:02:08.4]} 14. Bb3
{[%clk 0:02:11.2]} 14... exd5 {[%clk 0:01:37.5]} 15. exd5 {[%clk 0:02:10.8]}
15... Nxd5 {[%clk 0:01:33.5]} 16. Nxd5 {[%clk 0:02:10.1]} 16... cxd5 {[%clk
0:01:33.1]} 17. Bxd5 {[%clk 0:02:11]} 17... Rc8 {[%clk 0:01:32.2]} 18. c3 {[%clk
0:02:11.3]} 18... Bh6 {[%clk 0:01:29.2]} 19. Bxa7 {[%clk 0:02:01.6]} 19... Nxf4
{[%clk 0:01:24.1]} 20. Rhe1+ {[%clk 0:01:58.4]} 20... Kd7 {[%clk 0:01:11.9]} 21.
Be4 {[%clk 0:01:58]} 21... f5 {[%clk 0:01:07.7]} 22. Bc2 {[%clk 0:01:57]} 22...
Rhe8 {[%clk 0:01:02.2]} 23. Rxe8 {[%clk 0:01:03.4]} 23... Rxe8 {[%clk
0:01:00.2]} 24. Re1 {[%clk 0:01:02.6]} 24... Ra8 {[%clk 0:00:50.7]} 25. Bd4
{[%clk 0:00:53.1]} 25... Rxa2 {[%clk 0:00:50.1]} 26. Rb1 {[%clk 0:00:53.1]}
26... Ne6 {[%clk 0:00:41.1]} 27. Bb3 {[%clk 0:00:48.1]} 27... Ra8 {[%clk
0:00:37.4]} 28. Bf6 {[%clk 0:00:43.6]} 28... Nc5 {[%clk 0:00:35.7]} 29. Bc2
{[%clk 0:00:42.7]} 29... Re8 {[%clk 0:00:32.9]} 30. Ra1 {[%clk 0:00:36.6]} 30...
Bd2 {[%clk 0:00:31.7]} 31. Ra7+ {[%clk 0:00:33.1]} 31... Ke6 {[%clk 0:00:27.1]}
32. Bd4 {[%clk 0:00:31.9]} 32... h6 {[%clk 0:00:23.3]} 33. Rg7 {[%clk 0:00:20]}
33... Kd5 {[%clk 0:00:20.5]} 34. Rxg6 {[%clk 0:00:18.6]} 34... Bc1 {[%clk
0:00:16.5]} 35. Bxf5 {[%clk 0:00:11]} 35... Bxb2 {[%clk 0:00:13.7]} 36. Rxh6
{[%clk 0:00:09.7]} 36... Nb3 {[%clk 0:00:12.1]} 37. Be4+ {[%clk 0:00:07.3]}
37... Kc4 {[%clk 0:00:11]} 38. Bf6 {[%clk 0:00:06]} 38... b4 {[%clk 0:00:09.9]}
39. cxb4 {[%clk 0:00:05.4]} 39... Bd4+ {[%clk 0:00:09]} 40. Bxd4 {[%clk
0:00:05]} 40... Nxd4 {[%clk 0:00:08.9]} 41. Rxd6 {[%clk 0:00:04.8]} 41... Rh8
{[%clk 0:00:05.2]} 42. Kg2 {[%clk 0:00:04]} 42... Rg8+ {[%clk 0:00:04.9]} 43.
Kf1 {[%clk 0:00:04.4]} 43... Rh8 {[%clk 0:00:04.4]} 44. Rd5 {[%clk 0:00:03.7]}
44... Rxh2 {[%clk 0:00:03.5]} 45. b5 {[%clk 0:00:03.6]} 45... Nb3 {[%clk
0:00:02.2]} 46. b6 {[%clk 0:00:02.7]} 46... Nd2+ {[%clk 0:00:02.1]} 47. Rxd2
{[%clk 0:00:02.7]} 47... Rxd2 {[%clk 0:00:01]} 48. b7 {[%clk 0:00:03.6]} 48...
Rb2 {[%clk 0:00:01.5]} 49. Ke1 {[%clk 0:00:03.4]} 49... Kd4 {[%clk 0:00:01.9]}
50. Kd1 {[%clk 0:00:03.9]} 50... Ke3 {[%clk 0:00:02.4]} 51. Kc1 {[%clk
0:00:04.4]} 51... Rb6 {[%clk 0:00:03.1]} 52. Kc2 {[%clk 0:00:04.8]} 52... Kd4
{[%clk 0:00:03.5]} 53. Kd2 {[%clk 0:00:04.9]} 53... Kc5 {[%clk 0:00:03.5]} 54.
Ke3 {[%clk 0:00:05.2]} 54... Kd6 {[%clk 0:00:03.6]} 55. Kf4 {[%clk 0:00:05.6]}
55... Ke7 {[%clk 0:00:03.4]} 56. Ke5 {[%clk 0:00:05.9]} 56... Kd7 {[%clk
0:00:03.5]} 57. f4 {[%clk 0:00:05.8]} 57... Ke7 {[%clk 0:00:03.8]} 58. f5 {[%clk
0:00:06.2]} 58... Kf7 {[%clk 0:00:04]} 59. Bd5+ {[%clk 0:00:06.6]} 59... Kf8
{[%clk 0:00:03]} 60. f6 {[%clk 0:00:06.6]} 60... Rb2 {[%clk 0:00:03.5]} 61. Kd6
{[%clk 0:00:06.2]} 61... Rb6+ {[%clk 0:00:03.4]} 62. Ke5 {[%clk 0:00:06.1]}
62... Rb2 {[%clk 0:00:03.2]} 63. Kd6 {[%clk 0:00:06.6]} 63... Rb6+ {[%clk
0:00:02.9]} 64. Kc7 {[%clk 0:00:06.6]} 64... Rb2 {[%clk 0:00:02.3]} 65. Bc6
{[%clk 0:00:06.2]} 1-0